Workbook

Sheet Cover
B2: 3GPP TSG-RAN WG4 Meeting #104-e | J2: R4-2213659
B3: Electronic meeting, 15 Aug - 26, Aug, 2022
B5: Source: Samsung
B6: Title: Simulation results summary for Rel-17 FR2 HST BS demod
B7: Agenda: 9.7.4.2
B8: Document for: Information

Sheet Simulation Assumption for BS
A2: PUSCH
B3: Parameter | D3: Value
B4: Transform precoding | D4: Disabled
B5: Default TDD UL-DL pattern (Note 1) | D5: 120kHz SCS:
D6: 3D1S1U, S=10D:2G:2U
B7: Antenna layout | D7: 1T2R, ULA Low Correlation
B8: HARQ | C8: Maximum number of HARQ transmissions | D8: 4
C9: RV sequence | D9: 0, 2, 3, 1
B10: DM-RS | C10: DM-RS configuration type | D10: 1
C11: DM-RS duration | D11: single-symbol DM-RS
C12: Additional DM-RS symbols | D12: Option1: 1+0
D13: Option2: 1+1
D14: Option3: 1+1+1
C15: Number of DM-RS CDM group(s) without data | D15: 2
C16: Ratio of PUSCH EPRE to DM-RS EPRE | D16: -3 dB
C17: DM-RS port(s) | D17: 0
C18: DM-RS sequence generation | D18: NID=0, nSCID =0
B19: Time domain resource | C19: PUSCH mapping type | D19: B
C20: Start symbol index | D20: 0
C21: Allocation length | D21: 10
B22: Frequency domain resource | C22: RB assignment | D22: Full applicable test bandwidth
C23: Frequency hopping | D23: Disabled
C24: Bandwidth | D24: 50MHz and 200MHz
B25: Code block group based PUSCH transmission | D25: Disabled
B26: PT-RS configuration | C26: Frequency density (KPT-RS) | D26: KPT-RS=2
C27: Time density (LPT-RS) | D27: LPT-RS = 1
B28: MCS | D28: MCS19(64 QAM table)
B29: Propagation channel | D29: Bi-directional with sceanro B
A33: UL Timing adjustment
B35: Parameter | D35: Value
B36: Transform precoding | D36: Disabled
B37: Uplink-downlink allocation for TDD | D37: 120kHz SCS:
D38: 3D1S1U, S=10D:2G:2U
B39: Channel bandwidth | D39: 120KHz SCS: 50MHz and 200MHz
B40: MCS | D40: 16
B41: HARQ | C41: Maximum number of HARQ transmissions | D41: 4
C42: RV sequence | D42: 0, 2, 3, 1
B43: DM-RS | C43: DM-RS configuration type | D43: 1
C44: DM-RS duration | D44: single-symbol DM-RS
C45: DM-RS position (l0) | D45: 0
C46: Additional DM-RS position | D46: option 1: 1+0
D47: option 2: 1+1
D48: option 3: 1+1+1
C49: Number of DM-RS CDM group(s) without data | D49: 2
C50: Ratio of PUSCH EPRE to DM-RS EPRE | D50: -3 dB
C51: DM-RS port | D51: {0}
B52: Time domain resource assignment | C52: DM-RS sequence generation | D52: NID0=0, nSCID =0 for moving UE
D53: NID0=1, nSCID =1 for stationary UE
C54: PUSCH mapping type | D54: B
C55: Allocation length | D55: 10
B56: Frequency domain resource assignment | C56: RB assignment | D56: 50MHz CBW: 16RBs for each UE, Moving UE RBs: 0~15; Stationary UE RBs: 16~31
D57: 200MHz CBW: 66RBs for each UE, Moving UE RBs: 0~65, Stationary UE RBs: 66~131
C58: Starting PRB index | D58: Moving UE: 0
D59: Stationary UE: 16 for 50MHz and 66 for 200MHz
C60: Frequency hopping | D60: Disabled
B61: SRS resource allocation | C61: Slots in which sounding RS is transmitted (Note 1) | D61: For TDD:
D62: - last symbol in slot #3 in radio frames for 120KHz
C63: SRS resource allocation | D63: 120 kHz SCS:
D64: - 50MHz CBW (32RBs)~C_SRS =9, B_SRS=0
D65: - 200MHz CBW (132RBs)~C_SRS =33, B_SRS=0
B66: NOTE 1. The transmission of SRS is optional. And the transmission comb and SRS periodic are configured as KTC = 2, and TSRS= 10 respectively.
A70: PRACH
B72: Parameters | C72: Value
B73: Ncs | C73: 0
B74: Logical sequence index | C74: 0
B75: v | C75: 0
B76: Channel | C76: AWGN
B77: Antenna configuration | C77: 1T2R
B78: SCS | C78: 120KHz
B79: Frequency offset | C79: 19444Hz
B80: Timing offset | C80: 0:0.48:4.8

Sheet Parameters
C2: Parameters for deriving performance requirements
C3: Ideal Span Threshold | D3: 2 | E3: dB
C4: Impairment Span Threshold | D4: 4 | E4: dB
B7: Notes | C7: 1. Call function DerivingPerfReq()
C8: 2. If the ruls does not apply, or fails, -100dB or less will be returned
D9: -100 | E9: Not enough input
D10: -101 | E10: Input should be pairs
D11: -102 | E11: Too large span for impairment
D12: -103 | E12: After removal iteration, not enough input

Sheet PUSCH
A1: PUSCH | J1: 38.104 req | K1: 38.141 req | L1: Samsung | N1: Nokia | P1: Huawei | R1: Ericcson | T1: Intel | V1: CATT | X1: SPAN | Z1: AVERAGE
A2: Scenario | B2: FOE method | C2: Channel | D2: Frequency offset | E2: DMRS mapping type | F2: PUSCH data length | G2: BW | H2: MCS | I2: RS configuration | L2: Ideal | M2: Impairment | N2: Ideal | O2: Impairment | P2: Ideal | Q2: Impairment | R2: Ideal | S2: Impairment | T2: Ideal | U2: Impairment | V2: Ideal | W2: Impairment | X2: Ideal | Y2: Impairment | Z2: Ideal | AA2: Impairment
A3: Bi-directional B | B3: Post-FFT | C3: AWGN | D3: 9722 | E3: B | F3: 10 | G3: 120kHz, 50MHz | H3: MCS19 | I3: DMRS 1+0 | J3: =DerivingPerfReq(L3:W3) -> 12.9 | K3: =IF(J3>-100,J3+0.6,J3) -> 13.5 | L3: 11.1 | M3: 13.6 | N3: 9.12 | O3: 12.22 | P3: 10.29 | Q3: 12.79 | R3: 10.3 | S3: 12.5 | T3: 12.6 | V3: 10.94 | W3: 13.44 | X3: =MAX(L3,N3,P3,R3,T3,V3)-MIN(L3,N3,P3,R3,T3,V3) -> 3.48 | Y3: =MAX(M3,O3,Q3,S3,U3,W3)-MIN(M3,O3,Q3,S3,U3,W3) -> 1.38 | Z3: =AVERAGE(L3,N3,P3,R3,T3,V3) -> 10.725 | AA3: =AVERAGE(M3,O3,Q3,S3,U3,W3) -> 12.91
G4: 120kHz, 50MHz | H4: MCS19 | I4: DMRS 1+1 | J4: 12.5 | K4: 13.1 | L4: 10.8 | M4: 13.3 | N4: 8.94 | O4: 12.04 | P4: 9.65 | Q4: 12.15 | R4: 9.5 | S4: 11.5 | T4: 12.3 | V4: 10.89 | W4: 13.39 | X4: 3.36 | Y4: 1.89 | Z4: 10.34666667 | AA4: 12.476
G5: 120kHz, 50MHz | H5: MCS19 | I5: DMRS 1+1+1 | J5: 12.1 | K5: 12.7 | L5: 10.6 | M5: 13.1 | N5: 8.73 | O5: 11.83 | P5: 9.41 | Q5: 11.91 | R5: 9.4 | S5: 11.4 | V5: 10.89 | W5: 13.39 | X5: 2.16 | Y5: 1.99 | Z5: 9.806 | AA5: 12.326
G6: 120kHz, 200MHz | H6: MCS19 | I6: DMRS 1+0 | J6: 12.8 | K6: 13.4 | L6: 11.1 | M6: 13.6 | N6: 8.61 | O6: 11.95 | P6: 10.25 | Q6: 12.75 | R6: 9.8 | S6: 12 | T6: 10.4 | V6: 10.45 | W6: 12.95 | X6: 2.49 | Y6: 1.65 | Z6: 10.10166667 | AA6: 12.65
G7: 120kHz, 200MHz | H7: MCS19 | I7: DMRS 1+1 | J7: 12.3 | K7: 12.9 | L7: 10.7 | M7: 13.2 | N7: 8.71 | O7: 11.81 | P7: 9.41 | Q7: 11.91 | R7: 9.4 | S7: 11.4 | T7: 10.4 | V7: 10.67 | W7: 13.17 | X7: 1.99 | Y7: 1.8 | Z7: 9.881666667 | AA7: 12.298
G8: 120kHz, 200MHz | H8: MCS19 | I8: DMRS 1+1+1 | J8: 12.4 | K8: 13 | L8: 11 | M8: 13.5 | N8: 9.02 | O8: 12.12 | P8: 9.51 | Q8: 12.01 | R8: 9.4 | S8: 11.4 | V8: 10.62 | W8: 13.12 | X8: 1.98 | Y8: 2.1 | Z8: 9.91 | AA8: 12.43

Sheet UL timing ajustment
A1: PUSCH | G1: 38.104 req | H1: 38.141 req | I1: Samsung | K1: Nokia | M1: Huawei | O1: Ericcson | Q1: Intel | S1: CATT | U1: SPAN | W1: AVERAGE
A2: SCS and BW | B2: MCS | C2: Channel | D2: DMRS mapping | E2: Length of data | F2: RS | I2: Ideal | J2: Impairment | K2: Ideal | L2: Impairment | M2: Ideal | N2: Impairment | O2: Ideal | P2: Impairment | Q2: Ideal | R2: Impairment | S2: Ideal | T2: Impairment | U2: Ideal | V2: Impairment | W2: Ideal | X2: Impairment
A3: 120kHz, 50MHz | B3: MCS16 | C3: AWGN | D3: B | E3: 10 | F3: DMRS 1+0 | G3: =DerivingPerfReq(I3:T3) -> 9.1 | H3: =IF(G3>-100,G3+0.6,G3) -> 9.7 | I3: 7.5 | J3: 10 | K3: 6.75 | L3: 9.85 | M3: 6.56 | N3: 9.06 | O3: 6.5 | P3: 9 | Q3: 5.5 | R3: 7.5 | S3: 6.4 | T3: 8.9 | U3: =MAX(I3,K3,M3,O3,Q3,S3)-MIN(I3,K3,M3,O3,Q3,S3) -> 2 | V3: =MAX(J3,L3,N3,P3,R3,T3)-MIN(J3,L3,N3,P3,R3,T3) -> 2.5 | W3: =AVERAGE(I3,K3,M3,O3,Q3,S3) -> 6.535 | X3: =AVERAGE(J3,L3,N3,P3,R3,T3) -> 9.051666667
A4: 120kHz, 50MHz | B4: MCS16 | C4: AWGN | D4: B | E4: 10 | F4: DMRS 1+1 | G4: =DerivingPerfReq(I4:T4) -> 8.8 | H4: 9.4 | I4: 7.1 | J4: 9.6 | K4: 6.46 | L4: 9.56 | M4: 6.41 | N4: 8.91 | O4: 6.3 | P4: 8.8 | Q4: 5.8 | R4: 7.8 | S4: 5.89 | T4: 8.39 | U4: =MAX(I4,K4,M4,O4,Q4,S4)-MIN(I4,K4,M4,O4,Q4,S4) -> 1.3 | V4: =MAX(J4,L4,N4,P4,R4,T4)-MIN(J4,L4,N4,P4,R4,T4) -> 1.8 | W4: =AVERAGE(I4,K4,M4,O4,Q4,S4) -> 6.326666667 | X4: =AVERAGE(J4,L4,N4,P4,R4,T4) -> 8.843333333
A5: 120kHz, 50MHz | B5: MCS16 | C5: AWGN | D5: B | E5: 10 | F5: DMRS 1+1+1 | G5: 9.2 | H5: 9.8 | I5: 7.3 | J5: 9.8 | K5: 6.73 | L5: 9.83 | M5: 6.4 | N5: 8.9 | O5: 6.4 | P5: 8.9 | S5: 6.05 | T5: 8.55 | U5: 1.25 | V5: 1.28 | W5: 6.576 | X5: 9.196
A6: 120kHz, 200MHz | B6: MCS16 | C6: AWGN | D6: B | E6: 10 | F6: DMRS 1+0 | G6: 9 | H6: 9.6 | I6: 7.2 | J6: 9.7 | K6: 6.6 | L6: 9.7 | M6: 6.4 | N6: 8.9 | O6: 6.5 | P6: 9 | Q6: 6.1 | R6: 8.1 | S6: 6.36 | T6: 8.86 | U6: 1.1 | V6: 1.6 | W6: 6.526666667 | X6: 9.043333333
A7: 120kHz, 200MHz | B7: MCS16 | C7: AWGN | D7: B | E7: 10 | F7: DMRS 1+1 | G7: 8.9 | H7: 9.5 | I7: 7.2 | J7: 9.7 | K7: 6.47 | L7: 9.57 | M7: 6.4 | N7: 8.9 | O7: 6.4 | P7: 8.9 | Q7: 5.6 | R7: 7.6 | S7: 5.98 | T7: 8.48 | U7: 1.6 | V7: 2.1 | W7: 6.341666667 | X7: 8.858333333
A8: 120kHz, 200MHz | B8: MCS16 | C8: AWGN | D8: B | E8: 10 | F8: DMRS 1+1+1 | G8: 9.1 | H8: 9.7 | I8: 7.2 | J8: 9.7 | K8: 6.47 | L8: 9.57 | M8: 6.4 | N8: 8.9 | O8: 6.4 | P8: 8.9 | S8: 5.89 | T8: 8.39 | U8: 1.31 | V8: 1.31 | W8: 6.472 | X8: 9.092

Sheet PRACH
A1: PRACH | G1: 38.104 req | H1: 38.141 req | I1: Samsung | K1: Huawei | M1: Ericsson | O1: Nokia | Q1: Intel | S1: CATT | U1: SPAN | W1: AVERAGE
A2: Number of Tx | B2: Number of Rx | C2: Format | D2: Channel | E2: Frequency offset | F2: Timing offset range | I2: Ideal | J2: Impairment | K2: Ideal | L2: Impairment | M2: Ideal | N2: Impairment | O2: Ideal | P2: Impairment | Q2: Ideal | R2: Impairment | S2: Ideal | T2: Impairment | U2: Ideal | V2: Impairment | W2: Ideal | X2: Impairment
A3: 1 | B3: 2 | C3: C2 | D3: AWGN | E3: 19444Hz | F3: 0:0.48:4.8 | G3: =DerivingPerfReq(I3:T3) -> -10.4 | H3: =IF(G3>-100,G3+0.6,G3) -> -9.8 | I3: -12.55 | J3: -10.55 | K3: -14.07 | L3: -11.57 | M3: -12.6 | N3: -10.1 | O3: -12.48 | P3: -9.38 | Q3: -13.2 | R3: -10.7 | S3: -12.59 | T3: -10.09 | U3: =MAX(I3,K3,M3,O3,Q3,S3)-MIN(I3,K3,M3,O3,Q3,S3) -> 1.59 | V3: =MAX(J3,L3,N3,P3,R3,T3)-MIN(J3,L3,N3,P3,R3,T3) -> 2.19 | W3: =AVERAGE(I3,K3,M3,O3,Q3,S3) -> -12.915 | X3: =AVERAGE(J3,L3,N3,P3,R3,T3) -> -10.39833333
